bitfinex-derivatives/quotes_BTCF0:USTF0_20250805
["timestamp","ask_amount","ask_price","bid_price","bid_amount"]
[1754431753282,2.81244919,113650.0,113640.0,2.60874012]
[1754431753584,2.81244919,113650.0,113640.0,1.96386012]
[1754431753785,2.81244919,113650.0,113640.0,2.60870012]
[1754431754079,2.26854,113650.0,113640.0,2.60870012]
[1754431754284,2.10588,113650.0,113640.0,2.65092012]
[1754431754483,1.9999,113650.0,113640.0,3.01870391]
[1754431754686,1.9999,113650.0,113640.0,3.01874391]
[1754431755075,3.4999,113650.0,113640.0,3.01874391]
[1754431755677,1.9999,113650.0,113640.0,3.3866477]
[1754431755879,1.9999,113650.0,113640.0,3.3876477]
[1754431756378,1.9999,113650.0,113640.0,3.54548797]
[1754431756582,1.9999,113650.0,113640.0,3.54448797]
[1754431756887,1.82551,113650.0,113640.0,4.28637197]
[1754431757288,1.82551,113650.0,113640.0,4.28937197]
[1754431757987,1.82551,113650.0,113640.0,4.1315317]
[1754431758177,1.80094877,113650.0,113640.0,4.1315317]
[1754431759782,1.80094877,113650.0,113640.0,4.33672405]
[1754431759988,1.79204912,113650.0,113640.0,4.03672405]
[1754431761075,1.7414212,113650.0,113640.0,4.03672405]
[1754431761287,1.7171312,113650.0,113640.0,4.03672405]
[1754431761787,1.7171312,113650.0,113640.0,3.86074005]
[1754431762189,1.8092312,113650.0,113640.0,3.81852005]
[1754431762391,1.7587712,113650.0,113640.0,2.43824247]
[1754431762583,1.8766112,113650.0,113640.0,3.34534449]
[1754431763482,1.8766112,113650.0,113640.0,2.98216391]
[1754431765087,1.7587712,113650.0,113640.0,3.14015214]
[1754431765391,1.7587712,113650.0,113640.0,3.14040214]
[1754431766093,1.7587712,113650.0,113640.0,3.40330214]
[1754431767790,1.8261512,113650.0,113640.0,3.40330214]
[1754431767975,1.8766112,113650.0,113640.0,3.40330214]
[1754431769393,1.8766112,113650.0,113640.0,3.60849449]
[1754431769588,1.8766112,113650.0,113640.0,3.2405907]
[1754431769783,1.7587712,113650.0,113640.0,3.45025626]
[1754431770190,1.7587712,113650.0,113640.0,3.45050626]
[1754431771095,1.7171312,113650.0,113640.0,3.81841005]
[1754431772892,1.7587712,113650.0,113640.0,3.08260247]
[1754431773095,1.7587712,113650.0,113640.0,3.81841005]
[1754431773789,1.58412415,113650.0,113640.0,3.81841005]
[1754431773994,1.54248415,113650.0,113640.0,3.96451005]
[1754431774196,1.54248415,113650.0,113640.0,3.70161005]
[1754431774392,1.58412415,113650.0,113640.0,3.70161005]
[1754431774597,1.57731825,113650.0,113640.0,3.70161005]
[1754431775094,1.48716825,113650.0,113640.0,3.70161005]
[1754431776189,1.41417825,113650.0,113640.0,3.70161005]
[1754431776393,1.32613825,113650.0,113640.0,3.70161005]
[1754431777291,1.36777825,113650.0,113640.0,3.70161005]
[1754431777892,1.32613825,113650.0,113640.0,3.7593177]
[1754431778201,1.32613825,113650.0,113640.0,3.96469222]
[1754431778402,1.36777825,113650.0,113640.0,3.96469222]
[1754431778798,1.34568171,113650.0,113640.0,3.96469222]
[1754431779187,1.46352171,113650.0,113640.0,3.96469222]
[1754431779393,1.46352171,113650.0,113640.0,2.54989391]
[1754431779594,1.63952681,113650.0,113640.0,1.85587422]
[1754431779897,1.63952681,113650.0,113640.0,2.49927422]
[1754431780091,1.63952681,113650.0,113640.0,1.59297422]
[1754431780397,1.63952681,113650.0,113640.0,2.41239482]
[1754431780899,1.63952681,113650.0,113640.0,1.75101701]
[1754431781092,2.0074306,113650.0,113640.0,1.57819701]
[1754431781297,1.63952681,113650.0,113640.0,1.58119701]
[1754431781697,1.63952681,113650.0,113640.0,1.42315422]
[1754431782203,1.63952681,113650.0,113640.0,1.87461964]
[1754431782399,1.63952681,113650.0,113640.0,1.87261964]
[1754431782601,1.63952681,113650.0,113640.0,1.86961964]
[1754431783098,1.63952681,113650.0,113640.0,1.86861964]
[1754431783401,1.46452171,113650.0,113640.0,2.93312423]
[1754431784306,1.46352171,113650.0,113640.0,2.93312423]
[1754431784506,1.46352171,113650.0,113640.0,1.07328423]
[1754431784807,1.46352171,113650.0,113640.0,2.93300423]
[1754431786404,1.46352171,113650.0,113640.0,1.07328423]
[1754431786699,1.63952701,113650.0,113640.0,1.07328423]
[1754431786907,1.63952701,113650.0,113640.0,2.22921964]
[1754431787095,1.63952701,113650.0,113640.0,2.40524044]
[1754431787296,1.63952701,113650.0,113640.0,2.45104044]
[1754431787505,1.46352171,113650.0,113640.0,2.93292423]
[1754431787908,1.63952701,113650.0,113640.0,2.93292423]
[1754431788403,1.63952701,113650.0,113640.0,2.56502044]
[1754431788608,1.63952701,113650.0,113640.0,2.51541044]
[1754431788807,1.63952701,113650.0,113640.0,2.45104044]
[1754431789298,1.63952701,113650.0,113640.0,2.56502044]
[1754431789908,1.42188171,113650.0,113640.0,2.56502044]
[1754431790301,1.63952701,113650.0,113640.0,2.93292423]
[1754431790898,1.63952701,113650.0,113640.0,2.88331423]
[1754431791208,1.63952701,113650.0,113640.0,2.51541044]
[1754431791411,1.63952701,113650.0,113640.0,2.56502044]
[1754431791910,1.63952701,113650.0,113640.0,2.93292423]
[1754431793308,1.30404171,113650.0,113640.0,2.93292423]
[1754431793803,1.42243171,113650.0,113640.0,2.93292423]
[1754431794008,1.46938171,113650.0,113640.0,2.93292423]
[1754431794411,1.42243171,113650.0,113640.0,2.93292423]
[1754431795714,1.42243171,113650.0,113640.0,2.93392423]
[1754431796814,1.30404171,113650.0,113640.0,2.93392423]
[1754431797805,1.30404171,113650.0,113640.0,2.44888702]
[1754431798003,1.46938171,113650.0,113640.0,2.60952333]
[1754431798216,1.64538711,113650.0,113640.0,2.67525333]
[1754431798514,1.46938171,113650.0,113640.0,2.72337333]
[1754431798813,1.46938171,113650.0,113640.0,2.56533054]
[1754431799716,1.46938171,113650.0,113640.0,2.93323433]
[1754431800210,1.42243171,113650.0,113640.0,2.93323433]
[1754431800813,1.42243171,113650.0,113640.0,2.56533054]
[1754431800814,1.64538711,113650.0,113640.0,2.56533054]
[1754431801017,1.46938171,113650.0,113640.0,2.56533054]
[1754431801515,1.30404171,113650.0,113640.0,2.93323433]
[1754431802017,1.30404171,113650.0,113640.0,3.09127712]
[1754431802815,1.30404171,113650.0,113640.0,3.45918091]
[1754431804321,0.20071536,113650.0,113640.0,3.45918091]
[1754431804616,0.13678536,113650.0,113640.0,3.45918091]
[1754431804818,0.13678536,113650.0,113640.0,3.46018091]
[1754431805117,0.13678536,113650.0,113640.0,3.30113812]
[1754431805419,0.04083536,113650.0,113640.0,3.30313812]
[1754431805719,0.03839536,113650.0,113640.0,3.44823812]
[1754431805921,0.03839536,113650.0,113640.0,3.45223812]
[1754431806222,0.03839536,113650.0,113640.0,3.65761264]
[1754431807012,0.03839536,113650.0,113640.0,3.83359664]
[1754431807222,0.029259,113680.0,113670.0,0.2861043]
[1754431807520,0.22653,113690.0,113680.0,0.5309762]
[1754431807711,0.22653,113690.0,113680.0,2.1083362]
[1754431808011,0.92243,113690.0,113680.0,2.1083362]
[1754431809309,0.97038,113690.0,113680.0,2.1083362]
[1754431814824,0.97038,113690.0,113680.0,2.0643466]
[1754431815019,0.97038,113690.0,113680.0,1.9291684]
[1754431815211,0.97038,113690.0,113680.0,2.5706084]
[1754431815524,1.33828379,113690.0,113680.0,2.5706084]
[1754431815916,0.97038,113690.0,113680.0,2.5706084]
[1754431816112,0.97038,113690.0,113680.0,2.6187284]
[1754431816524,0.97038,113690.0,113680.0,2.6617984]
[1754431818826,0.97038,113690.0,113680.0,3.02970219]
[1754431819023,0.85199,113690.0,113680.0,3.02970219]
[1754431819225,0.85199,113690.0,113680.0,2.6617984]
[1754431819421,0.9202,113690.0,113680.0,2.6617984]
[1754431819621,0.97038,113690.0,113680.0,2.6617984]
[1754431819823,0.97038,113690.0,113680.0,3.02970219]
[1754431820021,0.97038,113690.0,113680.0,2.6617984]
[1754431822432,0.97038,113690.0,113680.0,2.0203584]
[1754431822632,1.33828379,113690.0,113680.0,2.6614384]
[1754431823123,1.33828379,113690.0,113680.0,2.5702592]
[1754431823430,1.33828379,113690.0,113680.0,2.4283892]
[1754431823728,1.33828379,113690.0,113680.0,2.5987092]
[1754431823924,0.97038,113690.0,113680.0,2.5987092]
[1754431824231,0.97339,113690.0,113680.0,2.5987092]
[1754431825428,0.92023,113690.0,113680.0,2.96661299]
[1754431825825,0.92023,113690.0,113680.0,2.5987092]
[1754431827631,0.97339,113690.0,113680.0,2.5987092]
[1754431828039,0.92023,113690.0,113680.0,2.5987092]
[1754431828528,0.97339,113690.0,113680.0,2.5987092]
[1754431829720,0.97239,113690.0,113680.0,2.5987092]
[1754431832619,0.97239,113690.0,113680.0,2.5997092]
[1754431832823,0.97239,113690.0,113680.0,2.6007092]
[1754431833626,0.97239,113690.0,113680.0,2.5997092]
[1754431835122,0.84866,113690.0,113680.0,2.5997092]
[1754431835327,0.80178,113690.0,113680.0,2.5997092]
[1754431836927,0.6959,113690.0,113680.0,2.96761299]
[1754431837132,0.6959,113690.0,113680.0,3.12560638]
[1754431838138,0.6959,113690.0,113680.0,2.96761299]
[1754431838333,0.6959,113690.0,113680.0,3.12583142]
[1754431838532,0.6959,113690.0,113680.0,3.12683142]
[1754431839226,0.6959,113690.0,113680.0,3.12783142]
[1754431839932,0.6959,113690.0,113680.0,2.96961299]
[1754431841628,0.6959,113690.0,113680.0,3.33751678]
[1754431842326,0.35224502,113690.0,113680.0,3.33751678]
[1754431842530,0.04462,113710.0,113700.0,0.0439808]
[1754431842730,0.0214625,113710.0,113700.0,2.03589299]
[1754431842929,0.0244625,113710.0,113700.0,2.03589299]
[1754431843429,0.003,113710.0,113700.0,2.03589299]
[1754431846635,1.503,113710.0,113700.0,2.03589299]
[1754431847044,1.503,113710.0,113700.0,2.03689299]
[1754431849240,0.04762,113710.0,113700.0,2.03689299]
[1754431850549,0.23259,113710.0,113700.0,2.03649299]
[1754431850844,0.28575,113710.0,113700.0,2.03649299]
[1754431851344,0.04762,113710.0,113700.0,2.03649299]
[1754431851547,0.04762,113710.0,113700.0,2.03886299]
[1754431852134,0.17244568,113720.0,113700.0,2.03886299]
[1754431852339,0.048,113720.0,113710.0,1.08028649]
[1754431853836,0.16761,113720.0,113710.0,1.08028649]
[1754431854148,0.11378,113720.0,113710.0,1.08028649]
[1754431855450,0.048,113720.0,113710.0,1.08028649]
[1754431857538,0.23001,113730.0,113720.0,0.3690772]
[1754431857739,0.28384,113730.0,113720.0,1.76152099]
[1754431858633,0.28484,113730.0,113720.0,1.76152099]
[1754431859041,0.23101,113730.0,113720.0,1.76152099]
[1754431859746,0.23101,113730.0,113720.0,1.77714248]
[1754431860347,0.28484,113730.0,113720.0,1.35252869]
[1754431860652,0.28484,113730.0,113720.0,1.38437869]
[1754431863251,0.28484,113730.0,113720.0,1.77690248]
[1754431865847,0.049,113730.0,113720.0,1.77690248]
[1754431866752,0.28484,113730.0,113720.0,1.77690248]
[1754431866952,0.28484,113730.0,113720.0,1.40899869]
[1754431867346,0.28484,113730.0,113720.0,1.77690248]
[1754431867752,0.28484,113730.0,113720.0,1.40899869]
[1754431867941,0.28484,113730.0,113720.0,1.77690248]
[1754431869046,0.28484,113730.0,113720.0,1.38389869]
[1754431869355,0.28484,113730.0,113720.0,0.74549869]
[1754431869549,0.28484,113730.0,113720.0,1.38381869]
[1754431869952,0.28484,113730.0,113720.0,1.75172248]
[1754431870251,0.28484,113730.0,113720.0,1.77634248]
[1754431872154,0.049,113730.0,113720.0,1.77634248]
[1754431872843,0.23731,113730.0,113720.0,1.77634248]
[1754431873757,0.001,113730.0,113720.0,1.77634248]
[1754431874059,0.23584,113750.0,113740.0,0.2909164]
[1754431874258,0.23584,113750.0,113740.0,2.97621019]
[1754431874755,0.28384,113750.0,113740.0,2.97621019]
[1754431875357,0.28584,113750.0,113740.0,2.97621019]
[1754431877664,0.28384,113750.0,113740.0,2.97621019]
[1754431877855,0.048,113750.0,113740.0,3.31239019]
[1754431878054,0.28384,113750.0,113740.0,3.33701019]
[1754431878654,0.28384,113750.0,113740.0,3.40869308]
[1754431879065,0.11378,113750.0,113740.0,3.40869308]
[1754431879264,0.048,113750.0,113740.0,3.40869308]
[1754431879958,0.12253,113760.0,113750.0,0.1758506]
[1754431880165,0.28384,113760.0,113750.0,1.12235439]
[1754431880371,0.16131,113760.0,113750.0,1.09773439]
[1754431880665,0.048,113760.0,113750.0,1.12235439]
[1754431885576,1.548,113760.0,113750.0,1.12235439]
[1754431888275,1.54495,113760.0,113750.0,1.12235439]
[1754431889473,1.54495,113760.0,113750.0,0.7544506]
[1754431889673,1.54495,113760.0,113750.0,1.12235439]
[1754431890165,1.66709,113760.0,113750.0,1.12235439]
[1754431891277,1.54495,113760.0,113750.0,1.12235439]
[1754431891774,1.5,113760.0,113750.0,1.12235439]
[1754431891971,1.54495,113760.0,113750.0,1.12235439]
[1754431892172,1.61741,113760.0,113750.0,1.12235439]
[1754431892571,1.66709,113760.0,113750.0,1.12235439]
[1754431894570,1.54495,113760.0,113750.0,1.12235439]
[1754431894972,1.66709,113760.0,113750.0,1.12235439]
[1754431897578,1.66839,113760.0,113750.0,1.12235439]
[1754431898880,1.66839,113760.0,113750.0,1.65303439]
[1754431899071,1.66839,113760.0,113750.0,1.04569439]
[1754431899271,1.66839,113760.0,113750.0,1.68217439]
[1754431899674,1.66839,113760.0,113750.0,0.5366509]
[1754431899979,2.03629379,113760.0,113750.0,1.1730509]
[1754431900173,1.66839,113760.0,113750.0,1.1730509]
[1754431901483,2.25608949,113760.0,113750.0,0.63632]
[1754431901777,2.08899949,113760.0,113750.0,0.58743]
[1754431902184,2.25608949,113760.0,113750.0,0.58743]
[1754431902381,1.66839,113760.0,113750.0,0.7632808]
[1754431902580,2.03629379,113760.0,113750.0,0.7632808]
[1754431903285,2.21212929,113760.0,113750.0,0.7632808]
[1754431903887,2.21212929,113760.0,113750.0,0.1758508]
[1754431904087,2.21212929,113760.0,113750.0,0.8121308]
[1754431904684,2.21212929,113760.0,113750.0,2.0274508]
[1754431904884,2.03629379,113760.0,113750.0,2.0274508]
[1754431905380,2.21212929,113760.0,113750.0,2.0274508]
[1754431906085,2.03629379,113760.0,113750.0,2.0274508]
[1754431906683,2.21212929,113760.0,113750.0,2.0274508]
[1754431906887,2.21212929,113760.0,113750.0,1.8516]
[1754431907186,2.57292929,113760.0,113750.0,1.21544]
[1754431907386,3.04874529,113760.0,113750.0,1.85144]
[1754431907600,3.04874529,113760.0,113750.0,1.79697]
[1754431907888,3.04874529,113760.0,113750.0,1.16097]
[1754431908088,3.04874529,113760.0,113750.0,1.67394]
[1754431908285,3.04874529,113760.0,113750.0,1.64745]
[1754431909690,3.04874529,113760.0,113750.0,1.01145]
[1754431909890,3.04874529,113760.0,113750.0,1.64737]
[1754431910485,3.04874529,113760.0,113750.0,1.8232207]
[1754431910981,2.6808415,113760.0,113750.0,1.8232207]
[1754431911188,2.57292929,113760.0,113750.0,1.8687707]
[1754431911583,2.57292929,113760.0,113750.0,1.8232207]
[1754431911985,2.57292929,113760.0,113750.0,1.8702507]
[1754431912188,2.57292929,113760.0,113750.0,0.2228807]
[1754431912393,2.57292929,113760.0,113750.0,0.8587207]
[1754431913486,2.57292929,113760.0,113750.0,0.68287]
[1754431913992,2.57292929,113760.0,113750.0,0.04703]
[1754431914288,2.57292929,113760.0,113740.0,1.59805919]
[1754431914289,0.3821908,113750.0,113740.0,1.59805919]
[1754431914484,1.11089459,113750.0,113740.0,2.18981279]
[1754431914683,1.11089459,113750.0,113740.0,0.33853279]
[1754431914883,1.11089459,113750.0,113740.0,2.18985279]
[1754431915391,1.11089459,113750.0,113740.0,2.26226279]
[1754431915891,0.7429908,113750.0,113740.0,2.31804279]
[1754431916080,0.7424008,113750.0,113740.0,2.31904279]
[1754431916285,0.3806608,113750.0,113740.0,2.67980279]
[1754431916592,0.20481,113750.0,113740.0,2.67980279]
[1754431916890,0.20575,113750.0,113740.0,2.67980279]
[1754431917090,0.15117,113750.0,113740.0,2.67980279]
[1754431917278,0.03469,113750.0,113740.0,3.04770658]
[1754431917683,0.03469,113750.0,113740.0,1.19642658]
[1754431917879,0.03469,113750.0,113740.0,3.04758658]
[1754431918695,0.15956,113750.0,113740.0,3.04758658]
[1754431919194,0.15956,113750.0,113740.0,2.67968279]
[1754431920697,0.03469,113750.0,113740.0,2.67968279]
[1754431920991,1.5013,113760.0,113750.0,0.11204]
[1754431921191,1.5013,113760.0,113750.0,0.83001459]
[1754431921393,1.5013,113760.0,113750.0,1.19081459]
[1754431921696,1.62617,113760.0,113750.0,1.19081459]
[1754431922990,1.5013,113760.0,113750.0,1.19081459]
[1754431929196,1.55494,113760.0,113750.0,1.19081459]
[1754431929395,1.62617,113760.0,113750.0,1.19081459]
[1754431930206,1.5013,113760.0,113750.0,1.19081459]
[1754431930904,1.62617,113760.0,113750.0,1.19081459]
[1754431931904,1.62617,113760.0,113750.0,1.34903302]
[1754431933116,1.5013,113760.0,113750.0,1.34903302]
[1754431933605,1.5013,113760.0,113750.0,1.19081459]
[1754431933998,1.5013,113760.0,113750.0,1.82545459]
[1754431934202,1.5013,113760.0,113750.0,1.98330325]
[1754431934402,1.62617,113760.0,113750.0,1.98330325]
[1754431936713,1.5013,113760.0,113750.0,1.98330325]
[1754431937413,1.5013,113760.0,113750.0,1.82545459]
[1754431939211,1.5013,113760.0,113750.0,1.98319638]
[1754431941305,1.5013,113760.0,113750.0,1.82545459]
[1754431943114,0.0013,113760.0,113750.0,1.98320656]
[1754431943316,0.0013,113760.0,113750.0,1.61530277]
[1754431943517,0.0013,113760.0,113750.0,2.24610656]
[1754431944012,1e-08,113760.0,113750.0,2.24610656]
[1754431944812,1e-08,113760.0,113750.0,2.08835459]
[1754431946506,1e-08,113760.0,113750.0,2.24610656]
[1754431946707,0.20007001,113760.0,113750.0,1.24356277]
[1754431946914,0.20007001,113760.0,113750.0,2.24538656]
[1754431947313,0.20007001,113760.0,113750.0,2.24526656]
[1754431947914,0.20007001,113760.0,113750.0,2.08751459]
[1754431948811,0.20007001,113760.0,113750.0,1.45371459]
[1754431949010,0.20007001,113760.0,113750.0,2.08743459]
[1754431949417,0.20007001,113760.0,113750.0,1.82453459]
[1754431949617,0.20007001,113760.0,113750.0,1.98228656]
[1754431950015,0.20007001,113760.0,113750.0,1.98220656]
[1754431951125,0.20007001,113760.0,113750.0,1.82445459]
[1754431951422,0.20007001,113760.0,113750.0,1.19081459]
[1754431951621,0.20007001,113760.0,113750.0,3.03977459]
[1754431952219,0.20007001,113760.0,113750.0,3.19779307]
[1754431952411,0.20007001,113760.0,113750.0,3.19771307]
[1754431953514,0.20007001,113760.0,113750.0,3.19767307]
[1754431957429,0.20007001,113760.0,113750.0,2.56415307]
[1754431957627,0.20007001,113760.0,113750.0,3.19739307]
[1754431957829,0.20007001,113760.0,113750.0,3.03937459]
[1754431958927,0.03426001,113760.0,113750.0,2.82959644]
[1754431959123,0.03426001,113760.0,113750.0,3.19750023]
[1754431959729,0.03426001,113760.0,113750.0,3.03937459]
[1754431960629,1e-08,113760.0,113750.0,2.86515459]
[1754431961434,1e-08,113760.0,113750.0,3.02329347]
[1754431962631,0.19368024,113790.0,113780.0,0.2874945]
[1754431962827,0.19368024,113790.0,113780.0,1.64923829]
[1754431963027,0.19368024,113790.0,113780.0,1.81709829]
[1754431963218,1.89428024,113790.0,113780.0,2.6645145]
[1754431964434,1.89528024,113790.0,113780.0,2.6645145]
[1754431965827,1.89528024,113790.0,113780.0,2.68898784]
[1754431967233,1.89528024,113790.0,113780.0,3.05689163]
[1754431967628,1.90167,113790.0,113780.0,3.05689163]
[1754431968734,1.7016,113790.0,113780.0,3.05689163]
[1754431969628,1.7016,113790.0,113780.0,3.21503051]
[1754431970430,1.7016,113790.0,113780.0,3.05689163]
[1754431970937,1.7016,113790.0,113780.0,2.42385163]
[1754431971132,1.82056,113790.0,113780.0,2.84656672]
[1754431971440,1.82156,113790.0,113780.0,3.21447051]
[1754431972036,1.82156,113790.0,113780.0,3.05633163]
[1754431973437,1.7016,113790.0,113780.0,3.05633163]
[1754431975235,1.7016,113790.0,113780.0,3.21447051]
[1754431976135,1.7016,113790.0,113780.0,3.05633163]
[1754431982144,1.7016,113790.0,113780.0,2.95132784]
[1754431982444,1.7006,113790.0,113780.0,3.31923163]
[1754431982646,1.7006,113790.0,113780.0,3.32123163]
[1754431983638,1.7006,113790.0,113780.0,3.32323163]
[1754431984347,1.7006,113790.0,113780.0,2.95532784]
[1754431984546,1.7006,113790.0,113780.0,3.32323163]
[1754431984742,1.82027,113790.0,113780.0,3.32323163]
[1754431985652,1.82027,113790.0,113780.0,3.06033163]
[1754431986650,1.82027,113790.0,113780.0,3.20643163]
[1754431987254,1.82027,113790.0,113780.0,3.36457051]
[1754431988957,1.7006,113790.0,113780.0,3.36457051]
[1754431991059,1.7006,113790.0,113780.0,3.21847051]
[1754431992361,1.82027,113790.0,113780.0,3.21847051]
[1754431993651,1.82027,113790.0,113780.0,3.06033163]
[1754431993857,1.82027,113790.0,113780.0,2.85709163]
[1754431994164,1.82027,113790.0,113780.0,2.48910894]
[1754431997368,1.82027,113790.0,113780.0,1.85806894]
[1754431997568,2.66396389,113790.0,113780.0,2.23543334]
[1754431997872,2.2960601,113790.0,113780.0,1.76273222]
[1754431998065,2.2960601,113790.0,113780.0,2.56937782]
[1754431998269,2.2960601,113790.0,113780.0,2.43946222]
[1754431998771,2.2960601,113790.0,113780.0,2.43746222]
[1754431998968,1.9960601,113790.0,113780.0,2.61326782]
[1754431999375,1.9960601,113790.0,113780.0,2.45512894]
[1754432000269,1.9960601,113790.0,113780.0,2.45312894]
[1754432000468,2.36396389,113790.0,113780.0,2.45312894]
[1754432000667,1.9960601,113790.0,113780.0,2.45312894]
[1754432001576,1.82027,113790.0,113780.0,2.45312894]
[1754432001970,1.82027,113790.0,113780.0,2.57293894]
[1754432002371,1.82027,113790.0,113780.0,2.94084273]
[1754432002674,1.81631,113790.0,113780.0,2.94084273]
[1754432003671,1.81631,113790.0,113780.0,2.94184273]
[1754432003872,1.81631,113790.0,113780.0,2.94284273]
[1754432005569,1.64317378,113790.0,113780.0,2.94284273]
[1754432005778,1.64317378,113790.0,113780.0,3.10098161]
[1754432006671,1.64317378,113790.0,113780.0,3.30635613]
[1754432007380,1.64317378,113790.0,113780.0,3.14821725]
[1754432009681,1.64317378,113790.0,113780.0,2.78031346]
[1754432009882,1.48365005,113790.0,113780.0,3.14821725]
[1754432010269,1.48365005,113790.0,113780.0,2.94284273]
[1754432012481,1.48365005,113790.0,113780.0,3.10077129]
[1754432013279,1.48365005,113790.0,113780.0,3.10076683]
[1754432014984,1.48365005,113790.0,113780.0,2.94284273]
[1754432015185,1.26447281,113790.0,113780.0,3.20574273]
[1754432015382,1.24262603,113790.0,113780.0,3.20574273]
[1754432016188,1.24262603,113790.0,113780.0,3.35184273]
[1754432016383,1.24262603,113790.0,113780.0,3.55721725]
[1754432016986,1.35833603,113790.0,113780.0,3.55633725]
[1754432017592,1.24262603,113790.0,113780.0,3.35096273]
[1754432019882,1.24262603,113790.0,113780.0,3.35196273]
[1754432020284,1.24262603,113790.0,113780.0,3.35296273]
[1754432021688,1.35833603,113790.0,113780.0,3.35296273]
[1754432021887,1.24262603,113790.0,113780.0,3.35296273]
[1754432022292,1.24262603,113790.0,113780.0,3.51081659]
[1754432024884,1.24262603,113790.0,113780.0,3.43929659]
[1754432025083,1.35833603,113790.0,113780.0,2.88085659]
[1754432025288,1.35833603,113790.0,113780.0,3.51037659]
[1754432025582,1.40132603,113790.0,113780.0,3.51037659]
[1754432026493,1.24262603,113790.0,113780.0,3.24747659]
[1754432026984,1.35833603,113790.0,113780.0,3.24747659]
[1754432028485,1.24262603,113790.0,113780.0,3.24747659]
[1754432029091,1.35833603,113790.0,113780.0,3.24747659]
[1754432030296,1.35833603,113790.0,113780.0,3.24547659]
[1754432030492,1.35833603,113790.0,113780.0,3.24947659]
[1754432031396,1.35833603,113790.0,113780.0,3.10337659]
[1754432031594,1.24262603,113790.0,113780.0,3.10337659]
[1754432031999,1.24262603,113790.0,113780.0,2.94552273]
[1754432032196,1.24262603,113790.0,113780.0,3.35452273]
[1754432032399,1.18581603,113790.0,113780.0,3.35452273]
[1754432032600,2.68581603,113790.0,113780.0,3.35452273]
[1754432032901,1.18581603,113790.0,113780.0,3.35452273]
[1754432033303,1.07046603,113790.0,113780.0,3.35452273]
[1754432036608,0.89614603,113790.0,113780.0,3.35452273]
[1754432039203,2.39614603,113790.0,113780.0,3.35452273]
[1754432039507,2.36146854,113790.0,113780.0,3.35452273]
[1754432040313,2.45096717,113790.0,113780.0,3.35452273]
[1754432040711,2.45096717,113790.0,113780.0,3.09162273]
[1754432041211,2.33588717,113790.0,113780.0,3.09162273]
[1754432041815,2.33588717,113790.0,113780.0,3.09262273]
[1754432042814,2.14054717,113790.0,113780.0,3.09262273]
[1754432043013,2.14054717,113790.0,113780.0,2.72471894]
[1754432043203,0.77465317,113790.0,113780.0,3.09262273]
[1754432043408,0.77465317,113790.0,113780.0,3.08862273]
[1754432043607,2.27465317,113790.0,113780.0,3.09362273]
[1754432044903,2.31828317,113790.0,113780.0,2.97281273]
[1754432045110,2.31828317,113790.0,113780.0,3.09243273]
[1754432045710,2.31828317,113790.0,113780.0,3.29796124]
[1754432045911,2.15957317,113790.0,113780.0,3.29796124]
[1754432046917,2.15957317,113790.0,113780.0,3.09243273]
[1754432047611,2.15957317,113790.0,113780.0,3.29794814]
[1754432048417,2.27465317,113790.0,113780.0,3.29794814]
[1754432050418,2.31828317,113790.0,113780.0,3.29794814]
[1754432051124,2.31828317,113790.0,113780.0,3.15152814]
[1754432051826,2.31828317,113790.0,113780.0,2.78362435]
[1754432052128,2.31828317,113790.0,113780.0,3.15152814]
[1754432052427,1.69104,113790.0,113780.0,3.15152814]
[1754432052821,1.64741,113790.0,113780.0,3.15152814]
[1754432053627,1.64741,113790.0,113780.0,2.94601273]
[1754432054332,1.5,113790.0,113780.0,2.94601273]
[1754432054733,1.5,113790.0,113780.0,3.15152814]
[1754432056026,1.61508,113790.0,113780.0,3.15152814]
[1754432056630,0.21876,113790.0,113780.0,3.15152814]
[1754432058234,0.21876,113790.0,113780.0,2.78362435]
[1754432058436,0.21876,113790.0,113780.0,3.15152814]
[1754432059539,0.21876,113790.0,113780.0,2.94601273]
[1754432060236,0.21876,113790.0,113780.0,3.30681273]
[1754432060636,0.26239,113790.0,113780.0,3.30681273]
[1754432061238,0.26239,113790.0,113780.0,3.45291273]
[1754432062135,0.21876,113790.0,113780.0,3.45291273]
[1754432063137,0.21876,113790.0,113780.0,3.6585381]
[1754432064340,0.21876,113790.0,113780.0,3.45291273]
[1754432065143,0.03233,113790.0,113780.0,3.45291273]
[1754432065340,0.58757689,113830.0,113800.0,0.4886085]
[1754432065341,0.10896,113810.0,113800.0,0.4886085]
[1754432065543,0.27135,113810.0,113800.0,2.32399906]
[1754432066428,0.27135,113810.0,113800.0,2.32499906]
[1754432066634,0.27135,113810.0,113800.0,2.32699906]
[1754432067644,0.22817,113810.0,113800.0,2.32699906]
[1754432069843,0.22817,113810.0,113800.0,3.54191906]
[1754432071345,0.22817,113810.0,113800.0,3.68801906]
[1754432071645,0.22817,113810.0,113800.0,3.54191906]
[1754432072745,0.27135,113810.0,113800.0,3.54191906]
[1754432074344,0.22817,113810.0,113800.0,3.54191906]
[1754432076648,0.22817,113810.0,113800.0,3.70009124]
[1754432079345,0.19847,113810.0,113800.0,3.70009124]
[1754432080450,0.15235,113810.0,113800.0,3.70009124]
[1754432080641,0.15235,113810.0,113800.0,3.54191906]
[1754432081042,0.22817,113830.0,113820.0,0.1757437]
[1754432081351,0.10590496,113830.0,113820.0,1.80531749]
[1754432082045,0.06025496,113830.0,113820.0,1.80531749]
[1754432082761,0.06025496,113830.0,113820.0,1.80631749]
[1754432083256,0.08878496,113830.0,113820.0,1.80631749]
[1754432084548,0.18819568,113840.0,113830.0,0.4497176]
[1754432084744,0.18819568,113840.0,113830.0,1.17842139]
[1754432085056,0.23137568,113840.0,113830.0,1.17842139]
[1754432086058,0.23137568,113840.0,113830.0,1.17942139]
[1754432087243,0.23587568,113840.0,113830.0,2.6528376]
[1754432087963,0.23587568,113840.0,113830.0,2.6527976]
[1754432089156,0.23587568,113840.0,113830.0,0.8115176]
[1754432089357,0.23587568,113840.0,113830.0,2.6526376]
[1754432089959,0.23587568,113840.0,113830.0,2.2918376]
[1754432090256,1.25518768,113840.0,113830.0,2.0178476]
[1754432090449,1.98389147,113840.0,113830.0,0.1767276]
[1754432090654,1.44029167,113840.0,113830.0,0.62728]
[1754432090854,1.98389147,113840.0,113830.0,0.62728]
[1754432091048,0.2545176,113830.0,113820.0,1.2148]
[1754432091254,1.23792339,113830.0,113820.0,1.81251]
[1754432091462,1.53792339,113830.0,113820.0,1.74101]
[1754432091960,2.46452339,113830.0,113820.0,1.74101]
[1754432092159,2.46452339,113830.0,113820.0,1.74097]
[1754432092953,2.46452339,113830.0,113820.0,1.9167119]
[1754432093354,2.46452339,113830.0,113820.0,1.9611219]
[1754432094055,2.46552339,113830.0,113820.0,1.3349219]
[1754432094366,2.46552339,113830.0,113820.0,1.7853]
[1754432095261,2.46552339,113830.0,113820.0,1.9610419]